[Event "Chpt France Universitaire 2024"]
[Site "Bastia, France"]
[Date "2024.04.06"]
[Round "2.1"]
[White "Blanquet, Camille"]
[Black "Rakotomaharo, Fy Antenaina"]
[Result "0-1"]
[TimeControl "15min+5s"]
[WhiteElo "2035"]
[BlackElo "2448"]

1. d4 {[%clk 00:15:05]} {[%emt 00:00:01]} d5 {[%clk 00:15:05]} {[%emt
00:00:06]} 2. Nf3 {[%clk 00:15:05]} {[%emt 00:00:03]} Nf6 {[%clk 00:15:05]}
{[%emt 00:00:01]} 3. c4 {[%clk 00:15:01]} {[%emt 00:00:10]} e6 {[%clk
00:15:05]} {[%emt 00:00:02]} 4. Nc3 {[%clk 00:15:01]} {[%emt 00:00:03]} dxc4
{[%clk 00:15:05]} {[%emt 00:00:04]} 5. g3 {[%clk 00:14:20]} {[%emt 00:00:46]}
c5 {[%clk 00:14:44]} {[%emt 00:00:25]} 6. Bg2 {[%clk 00:13:13]} {[%emt
00:01:12]} Nc6 {[%clk 00:14:44]} {[%emt 00:00:02]} 7. dxc5 {[%clk 00:13:06]}
{[%emt 00:00:13]} Qxd1+ {[%clk 00:14:34]} {[%emt 00:00:15]} 8. Nxd1 {[%clk
00:13:06]} {[%emt 00:00:02]} Bxc5 {[%clk 00:14:34]} {[%emt 00:00:04]} 9. O-O
{[%clk 00:13:01]} {[%emt 00:00:10]} O-O {[%clk 00:12:55]} {[%emt 00:01:43]} 10.
Be3 {[%clk 00:12:57]} {[%emt 00:00:10]} Bb6 {[%clk 00:12:20]} {[%emt 00:00:40]}
11. Rc1 {[%clk 00:12:24]} {[%emt 00:00:38]} Nd5 {[%clk 00:12:20]} {[%emt
00:00:04]} 12. Rxc4 {[%clk 00:11:49]} {[%emt 00:00:41]} Nxe3 {[%clk 00:11:50]}
{[%emt 00:00:35]} 13. Nxe3 {[%clk 00:11:49]} {[%emt 00:00:02]} Bxe3 {[%clk
00:11:27]} {[%emt 00:00:27]} 14. fxe3 {[%clk 00:11:49]} {[%emt 00:00:02]} e5
{[%clk 00:10:53]} {[%emt 00:00:39]} 15. Rc5 {[%clk 00:11:43]} {[%emt 00:00:10]}
f6 {[%clk 00:10:42]} {[%emt 00:00:15]} 16. Nd2 {[%clk 00:11:07]} {[%emt
00:00:42]} Be6 {[%clk 00:10:34]} {[%emt 00:00:13]} 17. Bxc6 {[%clk 00:10:25]}
{[%emt 00:00:47]} bxc6 {[%clk 00:10:34]} {[%emt 00:00:02]} 18. Rxc6 {[%clk
00:10:25]} {[%emt 00:00:02]} Bd5 {[%clk 00:10:34]} {[%emt 00:00:03]} 19. Rc7
{[%clk 00:10:19]} {[%emt 00:00:12]} Rfd8 {[%clk 00:10:29]} {[%emt 00:00:10]}
0-1

[Event "Chpt France Universitaire 2024"]
[Site "Bastia, France"]
[Date "2024.04.06"]
[Round "2.2"]
[White "Gatineau, Yovann"]
[Black "Soreda, Matteo"]
[Result "1-0"]
[TimeControl "15min+5s"]
[WhiteElo "2408"]
[BlackElo "1954"]

1. d4 {[%clk 00:15:05]} Nf6 {[%clk 00:15:05]} {[%emt 00:00:01]} 2. c4 {[%clk
00:15:05]} {[%emt 00:00:04]} e5 {[%clk 00:15:05]} {[%emt 00:00:02]} 3. dxe5
{[%clk 00:15:05]} {[%emt 00:00:04]} Ng4 {[%clk 00:15:05]} {[%emt 00:00:02]} 4.
Nf3 {[%clk 00:15:05]} {[%emt 00:00:05]} Bc5 {[%clk 00:15:03]} {[%emt 00:00:07]}
5. e3 {[%clk 00:15:05]} {[%emt 00:00:04]} Nc6 {[%clk 00:15:03]} {[%emt
00:00:04]} 6. Be2 {[%clk 00:15:04]} {[%emt 00:00:06]} Ngxe5 {[%clk 00:14:25]}
{[%emt 00:00:43]} 7. Nc3 {[%clk 00:15:03]} {[%emt 00:00:05]} O-O {[%clk
00:14:23]} {[%emt 00:00:07]} 8. O-O {[%clk 00:15:03]} {[%emt 00:00:04]} Nxf3+
{[%clk 00:14:16]} {[%emt 00:00:12]} 9. Bxf3 {[%clk 00:15:03]} {[%emt 00:00:02]}
Ne5 {[%clk 00:14:16]} {[%emt 00:00:03]} 10. Be2 {[%clk 00:15:01]} {[%emt
00:00:07]} a5 {[%clk 00:13:41]} {[%emt 00:00:40]} 11. Ne4 {[%clk 00:14:39]}
{[%emt 00:00:27]} Ba7 {[%clk 00:10:19]} {[%emt 00:03:27]} 12. b3 {[%clk
00:14:08]} {[%emt 00:00:36]} Qh4 {[%clk 00:10:16]} {[%emt 00:00:08]} 13. Ng3
{[%clk 00:13:39]} {[%emt 00:00:33]} d6 {[%clk 00:10:07]} {[%emt 00:00:14]} 14.
Bb2 {[%clk 00:13:24]} {[%emt 00:00:20]} Re8 {[%clk 00:09:23]} {[%emt 00:00:49]}
15. Qc2 {[%clk 00:10:42]} {[%emt 00:02:47]} Bg4 {[%clk 00:07:08]} {[%emt
00:02:20]} 16. Nf5 {[%clk 00:04:50]} {[%emt 00:05:57]} Bxf5 {[%clk 00:03:47]}
{[%emt 00:03:26]} 17. Qxf5 {[%clk 00:04:50]} {[%emt 00:00:02]} Re6 {[%clk
00:03:47]} {[%emt 00:00:03]} 18. g3 {[%clk 00:03:15]} {[%emt 00:01:40]} Qh6
{[%clk 00:03:26]} {[%emt 00:00:25]} 19. Rad1 {[%clk 00:02:30]} {[%emt
00:00:50]} Rae8 {[%clk 00:03:24]} {[%emt 00:00:07]} 20. Kg2 {[%clk 00:02:14]}
{[%emt 00:00:21]} Bc5 {[%clk 00:02:39]} {[%emt 00:00:51]} 21. Rd5 {[%clk
00:01:29]} {[%emt 00:00:50]} Rf6 {[%clk 00:02:09]} {[%emt 00:00:35]} 22. Qe4
{[%clk 00:01:21]} {[%emt 00:00:13]} Rfe6 {[%clk 00:02:06]} {[%emt 00:00:08]} 23.
Bxe5 {[%clk 00:01:11]} {[%emt 00:00:15]} Rxe5 {[%clk 00:02:06]} {[%emt
00:00:04]} 24. Rxe5 {[%clk 00:01:11]} {[%emt 00:00:03]} Rxe5 {[%clk 00:02:00]}
{[%emt 00:00:11]} 25. Qxb7 {[%clk 00:01:11]} {[%emt 00:00:01]} g6 {[%clk
00:02:00]} {[%emt 00:00:06]} 26. Qxc7 {[%clk 00:01:11]} {[%emt 00:00:04]} Qf8
{[%clk 00:00:57]} {[%emt 00:01:08]} 27. Bf3 {[%clk 00:01:05]} {[%emt 00:00:11]}
Qe8 {[%clk 00:00:55]} {[%emt 00:00:07]} 28. Rd1 {[%clk 00:00:53]} {[%emt
00:00:17]} Qe6 {[%clk 00:00:38]} {[%emt 00:00:22]} 29. Qxa5 {[%clk 00:00:41]}
{[%emt 00:00:17]} Bxe3 {[%clk 00:00:37]} {[%emt 00:00:06]} 30. Qa8+ {[%clk
00:00:41]} {[%emt 00:00:02]} Kg7 {[%clk 00:00:37]} {[%emt 00:00:01]} 31. fxe3
{[%clk 00:00:41]} {[%emt 00:00:02]} Rxe3 {[%clk 00:00:37]} {[%emt 00:00:01]} 32.
Qd5 {[%clk 00:00:25]} {[%emt 00:00:21]} Re2+ {[%clk 00:00:33]} {[%emt
00:00:10]} 33. Bxe2 {[%clk 00:00:25]} {[%emt 00:00:02]} Qxe2+ {[%clk 00:00:33]}
{[%emt 00:00:03]} 34. Kh1 {[%clk 00:00:25]} 1-0

[Event "Chpt France Universitaire 2024"]
[Site "Bastia, France"]
[Date "2024.04.06"]
[Round "2.3"]
[White "Crook, Oliver-James"]
[Black "Mathieu, Phileas"]
[Result "0-1"]
[TimeControl "15min+5s"]
[WhiteElo "1924"]
[BlackElo "2325"]

1. d4 {[%clk 00:15:05]} {[%emt 00:02:19]} Nf6 {[%clk 00:15:01]} {[%emt
00:00:09]} 2. Bg5 {[%clk 00:15:05]} {[%emt 00:00:02]} c5 {[%clk 00:15:01]}
{[%emt 00:00:02]} 3. d5 {[%clk 00:15:05]} {[%emt 00:00:02]} b5 {[%clk
00:15:01]} {[%emt 00:00:01]} 4. Bxf6 {[%clk 00:14:11]} {[%emt 00:00:59]} exf6
{[%clk 00:15:01]} {[%emt 00:00:04]} 5. e4 {[%clk 00:14:11]} {[%emt 00:00:01]}
g6 {[%clk 00:15:01]} {[%emt 00:00:01]} 6. h4 {[%clk 00:14:11]} {[%emt
00:00:02]} Bg7 {[%clk 00:14:14]} {[%emt 00:00:52]} 7. Nd2 {[%clk 00:12:55]}
{[%emt 00:01:21]} b4 {[%clk 00:12:23]} {[%emt 00:01:57]} 8. Ngf3 {[%clk
00:12:49]} {[%emt 00:00:11]} O-O {[%clk 00:12:23]} {[%emt 00:00:05]} 9. Bc4
{[%clk 00:12:12]} {[%emt 00:00:42]} d6 {[%clk 00:12:23]} {[%emt 00:00:04]} 10.
O-O {[%clk 00:11:24]} {[%emt 00:00:53]} Nd7 {[%clk 00:11:54]} {[%emt 00:00:34]}
11. a3 {[%clk 00:11:20]} {[%emt 00:00:08]} a5 {[%clk 00:11:41]} {[%emt
00:00:18]} 12. axb4 {[%clk 00:11:12]} {[%emt 00:00:13]} cxb4 {[%clk 00:11:41]}
{[%emt 00:00:01]} 13. Bb5 {[%clk 00:11:10]} {[%emt 00:00:07]} Nc5 {[%clk
00:11:35]} {[%emt 00:00:11]} 14. Bc6 {[%clk 00:09:34]} {[%emt 00:01:41]} Ra7
{[%clk 00:11:19]} {[%emt 00:00:22]} 15. c3 {[%clk 00:08:11]} {[%emt 00:01:28]}
bxc3 {[%clk 00:11:06]} {[%emt 00:00:18]} 16. bxc3 {[%clk 00:07:43]} {[%emt
00:00:33]} f5 {[%clk 00:11:06]} {[%emt 00:00:03]} 17. Qc2 {[%clk 00:06:17]}
{[%emt 00:01:30]} fxe4 {[%clk 00:10:56]} {[%emt 00:00:15]} 18. Nd4 {[%clk
00:05:40]} {[%emt 00:00:42]} Ba6 {[%clk 00:09:40]} {[%emt 00:01:21]} 19. Rfe1
{[%clk 00:05:05]} {[%emt 00:00:40]} Bd3 {[%clk 00:09:40]} {[%emt 00:00:02]} 20.
Qb2 {[%clk 00:05:00]} {[%emt 00:00:10]} Qxh4 {[%clk 00:09:26]} {[%emt
00:00:20]} 21. Re3 {[%clk 00:04:33]} {[%emt 00:00:31]} Be5 {[%clk 00:08:04]}
{[%emt 00:01:27]} 22. Rh3 {[%clk 00:04:30]} {[%emt 00:00:07]} Qg5 {[%clk
00:08:03]} {[%emt 00:00:06]} 23. Nf1 {[%clk 00:03:50]} {[%emt 00:00:44]} a4
{[%clk 00:07:24]} {[%emt 00:00:45]} 24. Ne3 {[%clk 00:02:44]} {[%emt 00:01:10]}
f5 {[%clk 00:06:58]} {[%emt 00:00:32]} 25. Qb6 {[%clk 00:02:36]} {[%emt
00:00:13]} Re7 {[%clk 00:06:42]} {[%emt 00:00:22]} 26. Ne6 {[%clk 00:02:09]}
{[%emt 00:00:32]} Nxe6 {[%clk 00:06:15]} {[%emt 00:00:32]} 27. dxe6 {[%clk
00:02:09]} {[%emt 00:00:01]} f4 {[%clk 00:06:03]} {[%emt 00:00:17]} 28. Nd5
{[%clk 00:01:54]} {[%emt 00:00:20]} Rxe6 {[%clk 00:05:49]} {[%emt 00:00:19]} 29.
Bd7 {[%clk 00:01:48]} {[%emt 00:00:11]} Re7 {[%clk 00:05:34]} {[%emt 00:00:20]}
30. Nxe7+ {[%clk 00:01:28]} {[%emt 00:00:24]} Qxe7 {[%clk 00:05:21]} {[%emt
00:00:18]} 31. Bxa4 {[%clk 00:01:13]} {[%emt 00:00:20]} Kh8 {[%clk 00:04:09]}
{[%emt 00:01:17]} 32. Bb3 {[%clk 00:01:09]} {[%emt 00:00:09]} Bg7 {[%clk
00:03:54]} {[%emt 00:00:20]} 33. Ra7 {[%clk 00:01:04]} {[%emt 00:00:09]} Qf6
{[%clk 00:03:40]} {[%emt 00:00:19]} 34. Qc6 {[%clk 00:00:29]} {[%emt 00:00:39]}
e3 {[%clk 00:03:14]} {[%emt 00:00:32]} 35. fxe3 {[%clk 00:00:28]} {[%emt
00:00:07]} fxe3 {[%clk 00:03:14]} {[%emt 00:00:05]} 36. Rf3 {[%clk 00:00:22]}
{[%emt 00:00:11]} e2 {[%clk 00:03:14]} {[%emt 00:00:01]} 37. Ra1 {[%clk
00:00:13]} {[%emt 00:00:13]} Qe5 {[%clk 00:02:38]} {[%emt 00:00:41]} 38. Rxf8+
{[%clk 00:00:13]} {[%emt 00:00:04]} Bxf8 {[%clk 00:02:38]} {[%emt 00:00:01]} 39.
Re1 {[%clk 00:00:08]} {[%emt 00:00:09]} Qg3 {[%emt 00:01:10]} 40. Rxe2 {[%emt
00:00:06]} Bxe2 {[%emt 00:00:02]} 41. Qe8 Qe1+ {[%emt 00:00:01]} 42. Kh2 Qh4+
43. Kg1 {[%emt 00:00:07]} Qe1+ {[%emt 00:00:08]} 44. Kh2 {[%emt 00:00:02]} Qf1
45. Qe6 {[%emt 00:00:12]} Qf4+ {[%emt 00:00:04]} 46. Kh1 {[%emt 00:00:04]} Qf1+
{[%emt 00:00:03]} 47. Kh2 Kg7 0-1

[Event "Chpt France Universitaire 2024"]
[Site "Bastia, France"]
[Date "2024.04.06"]
[Round "2.4"]
[White "Defromont, Benjamin"]
[Black "Morison, Julien"]
[Result "1/2-1/2"]
[TimeControl "15min+5s"]
[WhiteElo "2393"]
[BlackElo "1926"]

1. e4 {[%clk 00:15:05]} {[%emt 00:00:04]} e5 {[%clk 00:15:05]} {[%emt
00:00:01]} 2. Nf3 {[%clk 00:15:05]} {[%emt 00:00:03]} Nc6 {[%clk 00:15:05]}
{[%emt 00:00:01]} 3. Bb5 {[%clk 00:15:05]} {[%emt 00:00:03]} g6 {[%clk
00:15:05]} {[%emt 00:00:02]} 4. d4 {[%clk 00:14:56]} {[%emt 00:00:14]} Nxd4
{[%clk 00:15:05]} {[%emt 00:00:03]} 5. Nxd4 {[%clk 00:14:54]} {[%emt 00:00:07]}
exd4 {[%clk 00:15:05]} {[%emt 00:00:02]} 6. Qxd4 {[%clk 00:14:46]} {[%emt
00:00:13]} Qf6 {[%clk 00:15:05]} {[%emt 00:00:02]} 7. Qd3 {[%clk 00:14:02]}
{[%emt 00:00:50]} c6 {[%clk 00:14:45]} {[%emt 00:00:26]} 8. Bc4 {[%clk
00:14:02]} {[%emt 00:00:05]} b5 {[%clk 00:14:35]} {[%emt 00:00:15]} 9. Bb3
{[%clk 00:14:02]} {[%emt 00:00:04]} a5 {[%clk 00:14:35]} {[%emt 00:00:01]} 10.
a4 {[%clk 00:13:39]} {[%emt 00:00:29]} b4 {[%clk 00:13:39]} {[%emt 00:01:00]}
11. Bc4 {[%clk 00:13:07]} {[%emt 00:00:37]} Bg7 {[%clk 00:13:33]} {[%emt
00:00:11]} 12. O-O {[%clk 00:12:55]} {[%emt 00:00:16]} Ne7 {[%clk 00:13:25]}
{[%emt 00:00:13]} 13. Nd2 {[%clk 00:11:34]} {[%emt 00:01:26]} O-O {[%clk
00:13:07]} {[%emt 00:00:24]} 14. Nf3 {[%clk 00:11:27]} {[%emt 00:00:12]} d5
{[%clk 00:12:50]} {[%emt 00:00:22]} 15. exd5 {[%clk 00:10:28]} {[%emt
00:01:04]} cxd5 {[%clk 00:12:50]} {[%emt 00:00:02]} 16. Bb5 {[%clk 00:10:28]}
Bf5 {[%clk 00:12:46]} {[%emt 00:00:10]} 17. Qe2 {[%clk 00:09:45]} {[%emt
00:00:48]} Be4 {[%clk 00:12:29]} {[%emt 00:00:22]} 18. Bg5 {[%clk 00:08:52]}
{[%emt 00:00:58]} Qe6 {[%clk 00:12:04]} {[%emt 00:00:30]} 19. Rab1 {[%clk
00:07:44]} {[%emt 00:01:13]} Nf5 {[%clk 00:11:51]} {[%emt 00:00:17]} 20. Rfd1
{[%clk 00:06:21]} {[%emt 00:01:28]} h6 {[%clk 00:11:02]} {[%emt 00:00:54]} 21.
Be3 {[%clk 00:06:07]} {[%emt 00:00:20]} Rac8 {[%clk 00:10:32]} {[%emt
00:00:36]} 22. Ne1 {[%clk 00:04:43]} {[%emt 00:01:29]} Nxe3 {[%clk 00:09:24]}
{[%emt 00:01:13]} 23. fxe3 {[%clk 00:03:38]} {[%emt 00:01:11]} b3 {[%clk
00:08:42]} {[%emt 00:00:46]} 24. cxb3 {[%clk 00:03:27]} {[%emt 00:00:16]} Bxb1
{[%clk 00:08:41]} {[%emt 00:00:06]} 25. Rxb1 {[%clk 00:03:27]} {[%emt
00:00:01]} d4 {[%clk 00:08:35]} {[%emt 00:00:11]} 26. exd4 {[%clk 00:02:43]}
{[%emt 00:00:49]} Bxd4+ {[%clk 00:08:30]} {[%emt 00:00:10]} 27. Kh1 {[%clk
00:02:43]} {[%emt 00:00:01]} Qxe2 {[%clk 00:08:30]} {[%emt 00:00:04]} 28. Bxe2
{[%clk 00:02:43]} {[%emt 00:00:01]} Rfe8 {[%clk 00:08:30]} {[%emt 00:00:04]} 29.
Bc4 {[%clk 00:02:42]} {[%emt 00:00:07]} Bxb2 {[%clk 00:08:23]} {[%emt
00:00:11]} 30. Nd3 {[%clk 00:02:31]} {[%emt 00:00:17]} Bd4 {[%clk 00:08:09]}
{[%emt 00:00:19]} 31. Rf1 {[%clk 00:02:31]} Rc7 {[%clk 00:07:40]} {[%emt
00:00:35]} 32. Nf4 {[%clk 00:02:31]} {[%emt 00:00:01]} Kg7 {[%clk 00:06:37]}
{[%emt 00:01:08]} 33. Nd5 {[%clk 00:02:31]} {[%emt 00:00:02]} Rb7 {[%clk
00:06:09]} {[%emt 00:00:33]} 34. g4 {[%clk 00:02:29]} {[%emt 00:00:06]} Rd8
{[%clk 00:05:02]} {[%emt 00:01:12]} 35. Kg2 {[%clk 00:01:57]} {[%emt 00:00:37]}
Rbd7 {[%clk 00:05:02]} {[%emt 00:00:03]} 36. Nf4 {[%clk 00:01:55]} {[%emt
00:00:07]} Be5 {[%clk 00:04:58]} {[%emt 00:00:09]} 37. Ne2 {[%clk 00:01:48]}
{[%emt 00:00:12]} Bf6 {[%clk 00:04:40]} {[%emt 00:00:23]} 38. Rf4 {[%clk
00:01:27]} {[%emt 00:00:25]} Rd2 {[%clk 00:04:27]} {[%emt 00:00:17]} 39. h4
{[%clk 00:01:27]} {[%emt 00:00:02]} Re8 {[%clk 00:04:00]} {[%emt 00:00:32]} 40.
Kf3 {[%clk 00:01:27]} {[%emt 00:00:04]} Re7 {[%clk 00:03:55]} {[%emt 00:00:10]}
41. h5 {[%clk 00:01:24]} {[%emt 00:00:09]} Bg5 {[%clk 00:03:48]} {[%emt
00:00:12]} 42. Re4 {[%clk 00:01:15]} {[%emt 00:00:14]} Rxe4 {[%clk 00:03:48]}
{[%emt 00:00:05]} 43. Kxe4 {[%clk 00:01:15]} {[%emt 00:00:01]} gxh5 {[%clk
00:03:48]} {[%emt 00:00:04]} 44. gxh5 {[%clk 00:01:15]} {[%emt 00:00:01]} Rd1
{[%clk 00:03:41]} {[%emt 00:00:11]} 45. Nd4 {[%clk 00:01:04]} {[%emt 00:00:17]}
Rh1 {[%clk 00:03:40]} {[%emt 00:00:05]} 46. Be2 {[%clk 00:01:01]} {[%emt
00:00:08]} Kf6 {[%clk 00:03:26]} {[%emt 00:00:19]} 47. Kd3 {[%clk 00:00:58]}
{[%emt 00:00:09]} Rh4 {[%clk 00:03:11]} {[%emt 00:00:18]} 48. Nc6 {[%clk
00:00:58]} {[%emt 00:00:05]} Rh3+ {[%clk 00:02:50]} {[%emt 00:00:25]} 49. Kc2
{[%clk 00:00:58]} {[%emt 00:00:01]} Re3 {[%clk 00:02:37]} {[%emt 00:00:16]} 50.
Bd1 {[%clk 00:00:58]} {[%emt 00:00:03]} Ke6 {[%clk 00:02:18]} {[%emt 00:00:23]}
51. Nxa5 {[%clk 00:00:58]} {[%emt 00:00:01]} f5 {[%clk 00:02:18]} {[%emt
00:00:01]} 52. Nc4 {[%clk 00:00:58]} Re4 {[%clk 00:02:12]} {[%emt 00:00:10]} 53.
a5 {[%clk 00:00:54]} {[%emt 00:00:10]} Kd7 {[%clk 00:00:56]} {[%emt 00:01:19]}
54. a6 {[%clk 00:00:54]} {[%emt 00:00:02]} Kc7 {[%clk 00:00:36]} {[%emt
00:00:25]} 55. Bf3 {[%clk 00:00:48]} {[%emt 00:00:11]} Rxc4+ {[%clk 00:00:13]}
{[%emt 00:00:27]} 56. bxc4 {[%clk 00:00:48]} {[%emt 00:00:01]} Kb6 {[%clk
00:00:13]} 57. Bb7 {[%clk 00:00:48]} {[%emt 00:00:02]} f4 {[%clk 00:00:08]}
{[%emt 00:00:11]} 58. Kd3 {[%clk 00:00:48]} {[%emt 00:00:01]} Ka7 {[%clk
00:00:08]} 59. Ke4 {[%clk 00:00:42]} {[%emt 00:00:11]} Kb6 {[%clk 00:00:08]}
{[%emt 00:00:02]} 60. c5+ {[%clk 00:00:21]} {[%emt 00:00:26]} Ka7 {[%clk
00:00:08]} {[%emt 00:00:02]} 61. c6 {[%clk 00:00:09]} {[%emt 00:00:16]} Kb6
{[%clk 00:00:08]} {[%emt 00:00:01]} 62. Kf3 {[%clk 00:00:09]} {[%emt 00:00:03]}
Bd8 {[%clk 00:00:07]} {[%emt 00:00:06]} 63. Kxf4 {[%clk 00:00:09]} {[%emt
00:00:01]} Bc7+ {[%emt 00:00:02]} 64. Kf5 Ka7 {[%clk 00:00:07]} {[%emt
00:00:01]} 65. Kg6 {[%clk 00:00:09]} {[%emt 00:00:03]} Bf4 {[%clk 00:00:07]}
{[%emt 00:00:01]} 66. Kf6 {[%clk 00:00:09]} Kb6 {[%clk 00:00:07]} {[%emt
00:00:02]} 67. Ke6 {[%clk 00:00:09]} Bc7 {[%emt 00:00:02]} 68. Kd7 {[%emt
00:00:02]} Bf4 {[%clk 00:00:07]} 69. Kc8 {[%clk 00:00:07]} {[%emt 00:00:07]}
Bc7 {[%clk 00:00:07]} {[%emt 00:00:03]} 70. Ba8 {[%clk 00:00:07]} {[%emt
00:00:03]} Bf4 {[%clk 00:00:07]} {[%emt 00:00:02]} 71. Kd7 {[%emt 00:00:05]}
Bg3 {[%clk 00:00:07]} 72. a7 {[%clk 00:00:07]} {[%emt 00:00:01]} Kxa7 {[%clk
00:00:07]} {[%emt 00:00:02]} 73. c7 {[%clk 00:00:07]} {[%emt 00:00:01]} Bxc7
{[%clk 00:00:07]} {[%emt 00:00:02]} 74. Kxc7 {[%clk 00:00:07]} Kxa8 {[%clk
00:00:07]} 75. Kc8 {[%clk 00:00:07]} Ka7 {[%clk 00:00:07]} 76. Kd7 {[%clk
00:00:07]} Kb7 {[%clk 00:00:07]} 77. Ke6 {[%clk 00:00:07]} Kc8 {[%clk
00:00:07]} 78. Kf6 {[%clk 00:00:07]} {[%emt 00:00:01]} Kd8 79. Kg7 Ke7 {[%clk
00:00:07]} 80. Kxh6 {[%clk 00:00:07]} {[%emt 00:00:02]} Kf6 {[%clk 00:00:07]}
81. Kh7 {[%clk 00:00:07]} {[%emt 00:00:01]} Kf7 {[%clk 00:00:07]} 82. h6 {[%clk
00:00:07]} {[%emt 00:00:01]} Kf8 {[%clk 00:00:07]} {[%emt 00:00:01]} 83. Kg6
{[%clk 00:00:07]} {[%emt 00:00:01]} Kg8 {[%clk 00:00:07]} 84. h7+ {[%clk
00:00:07]} {[%emt 00:00:02]} Kh8 {[%clk 00:00:07]} 85. Kf7 {[%clk 00:00:07]}
Kxh7 {[%clk 00:15:05]} {[%emt 00:00:02]} 1/2-1/2

[Event "Chpt France Universitaire 2024"]
[Site "Bastia, France"]
[Date "2024.04.06"]
[Round "2.6"]
[White "Dalaud, Dorian"]
[Black "Fischer, Thorange"]
[Result "1-0"]
[TimeControl "15min+5s"]
[WhiteElo "2307"]
[BlackElo "1924"]

1. e4 {[%clk 00:15:03]} {[%emt 00:00:06]} c5 {[%clk 00:15:05]} {[%emt
00:00:03]} 2. Nf3 {[%clk 00:15:03]} {[%emt 00:00:04]} Nc6 {[%clk 00:15:05]}
{[%emt 00:00:03]} 3. Bb5 {[%clk 00:15:03]} {[%emt 00:00:02]} g6 {[%clk
00:15:05]} {[%emt 00:00:03]} 4. O-O {[%clk 00:14:55]} {[%emt 00:00:13]} Bg7
{[%clk 00:14:47]} {[%emt 00:00:23]} 5. Bxc6 {[%clk 00:14:37]} {[%emt 00:00:24]}
dxc6 {[%clk 00:14:47]} {[%emt 00:00:02]} 6. d3 {[%clk 00:14:37]} {[%emt
00:00:02]} Nf6 {[%clk 00:13:33]} {[%emt 00:01:19]} 7. a4 {[%clk 00:14:12]}
{[%emt 00:00:29]} Bg4 {[%clk 00:13:23]} {[%emt 00:00:15]} 8. Nbd2 {[%clk
00:14:04]} {[%emt 00:00:12]} Nd7 {[%clk 00:13:13]} {[%emt 00:00:15]} 9. h3
{[%clk 00:13:58]} {[%emt 00:00:11]} Bxf3 {[%clk 00:13:09]} {[%emt 00:00:09]} 10.
Nxf3 {[%clk 00:13:58]} {[%emt 00:00:02]} e5 {[%clk 00:13:09]} {[%emt 00:00:06]}
11. a5 {[%clk 00:10:59]} {[%emt 00:03:04]} O-O {[%clk 00:12:25]} {[%emt
00:00:49]} 12. h4 {[%clk 00:10:59]} {[%emt 00:00:02]} Re8 {[%clk 00:09:34]}
{[%emt 00:02:55]} 13. h5 {[%clk 00:10:47]} {[%emt 00:00:16]} gxh5 {[%clk
00:09:05]} {[%emt 00:00:35]} 14. g3 {[%clk 00:08:40]} {[%emt 00:02:12]} Bf6
{[%clk 00:08:15]} {[%emt 00:00:55]} 15. Nh2 {[%clk 00:06:04]} {[%emt 00:02:41]}
h4 {[%clk 00:07:37]} {[%emt 00:00:44]} 16. Qh5 {[%clk 00:06:01]} {[%emt
00:00:08]} Nf8 {[%clk 00:05:53]} {[%emt 00:01:49]} 17. Ng4 {[%clk 00:05:44]}
{[%emt 00:00:22]} Ng6 {[%clk 00:05:45]} {[%emt 00:00:12]} 18. Be3 {[%clk
00:04:34]} {[%emt 00:01:15]} Kh8 {[%clk 00:02:42]} {[%emt 00:03:09]} 19. Qf5
{[%clk 00:02:30]} {[%emt 00:02:10]} Bg7 {[%clk 00:01:40]} {[%emt 00:01:06]} 20.
Bxc5 {[%clk 00:02:30]} {[%emt 00:00:05]} Qc8 {[%clk 00:01:13]} {[%emt
00:00:32]} 21. Qh5 {[%clk 00:01:19]} {[%emt 00:01:16]} Qd8 {[%clk 00:00:45]}
{[%emt 00:00:33]} 22. Kg2 {[%clk 00:00:54]} {[%emt 00:00:29]} Rg8 {[%clk
00:00:37]} {[%emt 00:00:12]} 23. Rh1 {[%clk 00:00:50]} {[%emt 00:00:09]} Qd7
{[%clk 00:00:36]} {[%emt 00:00:07]} 24. Be3 {[%clk 00:00:45]} {[%emt 00:00:10]}
Raf8 {[%clk 00:00:27]} {[%emt 00:00:14]} 25. Nh6 {[%clk 00:00:35]} {[%emt
00:00:16]} Bxh6 {[%clk 00:00:27]} {[%emt 00:00:02]} 26. Bxh6 {[%clk 00:00:35]}
{[%emt 00:00:02]} Nf4+ {[%clk 00:00:27]} {[%emt 00:00:05]} 27. Bxf4 {[%clk
00:00:35]} {[%emt 00:00:01]} exf4 {[%clk 00:00:27]} {[%emt 00:00:02]} 28. Rxh4
{[%clk 00:00:22]} {[%emt 00:00:17]} Rg7 {[%clk 00:00:18]} {[%emt 00:00:15]} 29.
Rxf4 {[%clk 00:00:19]} {[%emt 00:00:08]} Qd4 {[%clk 00:00:18]} {[%emt
00:00:04]} 30. Rb1 {[%clk 00:00:14]} {[%emt 00:00:09]} Qa4 {[%clk 00:00:12]}
{[%emt 00:00:11]} 31. b3 {[%clk 00:00:14]} {[%emt 00:00:02]} Qa2 {[%clk
00:00:12]} {[%emt 00:00:02]} 32. Rh1 {[%clk 00:00:14]} {[%emt 00:00:02]} Qxc2
{[%clk 00:00:12]} {[%emt 00:00:03]} 33. Qe5 {[%clk 00:00:10]} {[%emt 00:00:10]}
Kg8 {[%clk 00:00:08]} {[%emt 00:00:08]} 34. Rhh4 {[%clk 00:00:07]} {[%emt
00:00:07]} Qxb3 {[%clk 00:00:08]} {[%emt 00:00:04]} 35. Rfg4 {[%clk 00:00:07]}
{[%emt 00:00:04]} f6 {[%clk 00:00:08]} 36. Qe7 {[%clk 00:00:07]} {[%emt
00:00:05]} Qf7 {[%clk 00:00:08]} 37. Rxg7+ {[%clk 00:00:07]} {[%emt 00:00:02]}
Qxg7 {[%clk 00:00:08]} {[%emt 00:00:01]} 38. Qe6+ {[%clk 00:00:07]} {[%emt
00:00:05]} Qf7 {[%clk 00:00:08]} {[%emt 00:00:04]} 39. Rg4+ {[%clk 00:00:07]}
{[%emt 00:00:01]} Kh8 {[%clk 00:00:08]} {[%emt 00:00:01]} 40. Qf5 {[%clk
00:00:07]} {[%emt 00:00:01]} Rg8 {[%clk 00:00:08]} {[%emt 00:00:03]} 41. Rh4
{[%clk 00:00:07]} {[%emt 00:00:03]} Rg5 {[%clk 00:00:08]} {[%emt 00:00:04]} 42.
Qc8+ {[%clk 00:00:07]} {[%emt 00:00:01]} Kg7 {[%clk 00:00:08]} {[%emt
00:00:01]} 43. Qd8 {[%clk 00:00:07]} {[%emt 00:00:06]} h5 {[%clk 00:00:08]}
{[%emt 00:00:03]} 44. Rf4 {[%clk 00:00:07]} {[%emt 00:00:02]} Rxa5 {[%emt
00:00:03]} 45. Qxa5 {[%clk 00:00:07]} {[%emt 00:00:01]} 1-0